[Event "Titled Tuesday Blitz August 10 2021"]
[White "Demidov, Mikhail"]
[Black "Le, Tuan Minh"]
[WhiteFideId "4197143"]
[BlackFideId "12401153"]
[WhiteElo "2559"]
[BlackElo "2450"]
[Result "1/2-1/2"]
[Round "04"]
[TimeControl "180+1"]
[Date "2021.08.10"]
[WhiteClock "0:00:02"]
[BlackClock "0:00:06"]

1. Nf3 {[%clk 0:03:00]}  d5 {[%clk 0:03:00]} 2. d4 {[%clk 0:03:01]}  Nf6 {[%clk 0:03:00]} 3. Bf4 {[%clk 0:03:01]}  Bf5 {[%clk 0:03:00]} 4. e3 {[%clk 0:03:00]}  e6 {[%clk 0:03:00]} 5. c4 {[%clk 0:03:01]}  Bxb1 {[%clk 0:03:01]} 6. Qxb1 {[%clk 0:03:01]}  Bb4+ {[%clk 0:03:02]} 7. Kd1 {[%clk 0:03:01]}  Bd6 {[%clk 0:03:02]} 8. Bg3 {[%clk 0:02:58]}  c5 {[%clk 0:02:53]} 9. cxd5 {[%clk 0:02:58]}  Nxd5 {[%clk 0:02:51]} 10. Bb5+ {[%clk 0:02:57]}  Nc6 {[%clk 0:02:49]} 11. Ke2 {[%clk 0:02:50]}  O-O {[%clk 0:02:43]} 12. Bxc6 {[%clk 0:02:50]}  bxc6 {[%clk 0:02:43]} 13. dxc5 {[%clk 0:02:49]}  Bxc5 {[%clk 0:02:41]} 14. Rc1 {[%clk 0:02:47]}  Qb6 {[%clk 0:02:33]} 15. Kf1 {[%clk 0:02:38]}  Be7 {[%clk 0:02:22]} 16. Kg1 {[%clk 0:02:35]}  c5 {[%clk 0:02:16]} 17. Qc2 {[%clk 0:02:32]}  Rfd8 {[%clk 0:02:13]} 18. Rab1 {[%clk 0:02:29]}  Rac8 {[%clk 0:02:01]} 19. Qc4 {[%clk 0:02:21]}  Qa5 {[%clk 0:01:53]} 20. a3 {[%clk 0:02:08]}  Nb6 {[%clk 0:01:50]} 21. Qc3 {[%clk 0:02:07]}  Qa4 {[%clk 0:01:45]} 22. Be5 {[%clk 0:01:52]}  Bf8 {[%clk 0:01:42]} 23. Qc2 {[%clk 0:01:47]}  Qb5 {[%clk 0:01:34]} 24. Rd1 {[%clk 0:01:40]}  h6 {[%clk 0:01:25]} 25. h3 {[%clk 0:01:35]}  Rd5 {[%clk 0:01:24]} 26. e4 {[%clk 0:01:27]}  Rdd8 {[%clk 0:01:19]} 27. Rxd8 {[%clk 0:01:25]}  Rxd8 {[%clk 0:01:20]} 28. Rd1 {[%clk 0:01:25]}  Rd7 {[%clk 0:01:03]} 29. Rxd7 {[%clk 0:01:13]}  Qxd7 {[%clk 0:01:04]} 30. Bc3 {[%clk 0:01:08]}  c4 {[%clk 0:01:02]} 31. Qd2 {[%clk 0:01:00]}  Qc6 {[%clk 0:01:02]} 32. Qd4 {[%clk 0:00:56]}  f6 {[%clk 0:00:53]} 33. Nd2 {[%clk 0:00:36]}  Bc5 {[%clk 0:00:49]} 34. Qd8+ {[%clk 0:00:36]}  Kh7 {[%clk 0:00:50]} 35. Bd4 {[%clk 0:00:30]}  e5 {[%clk 0:00:46]} 36. Bxc5 {[%clk 0:00:23]}  Qxc5 {[%clk 0:00:47]} 37. Nf3 {[%clk 0:00:17]}  c3 {[%clk 0:00:44]} 38. bxc3 {[%clk 0:00:18]}  Qxc3 {[%clk 0:00:45]} 39. Qe7 {[%clk 0:00:16]}  a5 {[%clk 0:00:31]} 40. Kh2 {[%clk 0:00:16]}  Qc2 {[%clk 0:00:27]} 41. Qb7 {[%clk 0:00:12]}  Qxf2 {[%clk 0:00:25]} 42. Qc6 {[%clk 0:00:07]}  Qe3 {[%clk 0:00:23]} 43. Qe6 {[%clk 0:00:06]}  Qf4+ {[%clk 0:00:23]} 44. Kh1 {[%clk 0:00:06]}  Na4 {[%clk 0:00:19]} 45. Qc4 {[%clk 0:00:04]}  Nb2 {[%clk 0:00:19]} 46. Qc2 {[%clk 0:00:04]}  a4 {[%clk 0:00:08]} 47. Qxb2 {[%clk 0:00:05]}  Qxe4 {[%clk 0:00:09]} 48. Kh2 {[%clk 0:00:05]}  Qf4+ {[%clk 0:00:09]} 49. Kh1 {[%clk 0:00:06]}  e4 {[%clk 0:00:09]} 50. Qc2 {[%clk 0:00:06]}  f5 {[%clk 0:00:10]} 51. Ng1 {[%clk 0:00:06]}  Qe5 {[%clk 0:00:09]} 52. Qxa4 {[%clk 0:00:05]}  Qc3 {[%clk 0:00:05]} 53. Qb5 {[%clk 0:00:05]}  g6 {[%clk 0:00:05]} 54. a4 {[%clk 0:00:05]}  Qe1 {[%clk 0:00:03]} 55. a5 {[%clk 0:00:06]}  f4 {[%clk 0:00:03]} 56. Qd7+ {[%clk 0:00:05]}  Kg8 {[%clk 0:00:03]} 57. Qe8+ {[%clk 0:00:04]}  Kg7 {[%clk 0:00:03]} 58. Qe7+ {[%clk 0:00:05]}  Kg8 {[%clk 0:00:04]} 59. Qe8+ {[%clk 0:00:05]}  Kg7 {[%clk 0:00:04]} 60. Qe5+ {[%clk 0:00:06]}  Kh7 {[%clk 0:00:05]} 61. Qxf4 {[%clk 0:00:06]}  Qxa5 {[%clk 0:00:06]} 62. Qxe4 {[%clk 0:00:07]}  Qc7 {[%clk 0:00:06]} 63. Nf3 {[%clk 0:00:07]}  Qc1+ {[%clk 0:00:06]} 64. Kh2 {[%clk 0:00:08]}  Qc7+ {[%clk 0:00:06]} 65. Qe5 {[%clk 0:00:08]}  Qf7 {[%clk 0:00:06]} 66. Nd4 {[%clk 0:00:08]}  Qd7 {[%clk 0:00:06]} 67. Ne6 {[%clk 0:00:08]}  Qe7 {[%clk 0:00:07]} 68. Kg3 {[%clk 0:00:07]}  Qa3+ {[%clk 0:00:07]} 69. Kh2 {[%clk 0:00:07]}  Qe7 {[%clk 0:00:08]} 70. Qd5 {[%clk 0:00:07]}  Qf6 {[%clk 0:00:05]} 71. Qd7+ {[%clk 0:00:06]}  Kg8 {[%clk 0:00:06]} 72. Qe8+ {[%clk 0:00:06]}  Kh7 {[%clk 0:00:06]} 73. Qd7+ {[%clk 0:00:04]}  Kg8 {[%clk 0:00:07]} 74. Qc8+ {[%clk 0:00:04]}  Kf7 {[%clk 0:00:06]} 75. Qd7+ {[%clk 0:00:02]}  Kg8 {[%clk 0:00:06]} 1/2-1/2


[Site "https://www.chess.com"]

[Event "Titled Tuesday Blitz August 10 2021"]
[White "Jobava, Baadur"]
[Black "Nakamura, Hikaru"]
[WhiteFideId "13601520"]
[BlackFideId "2016192"]
[WhiteElo "2748"]
[BlackElo "2900"]
[Result "1-0"]
[Round "04"]
[TimeControl "180+1"]
[Date "2021.08.10"]
[WhiteClock "0:01:14"]
[BlackClock "0:01:17"]

1. e4 {[%clk 0:03:00]}  e5 {[%clk 0:02:58]} 2. Nf3 {[%clk 0:02:59]}  Nc6 {[%clk 0:02:58]} 3. d4 {[%clk 0:02:57]}  exd4 {[%clk 0:02:58]} 4. Nxd4 {[%clk 0:02:58]}  Nf6 {[%clk 0:02:59]} 5. Nxc6 {[%clk 0:02:58]}  bxc6 {[%clk 0:02:59]} 6. Bd3 {[%clk 0:02:59]}  d5 {[%clk 0:02:57]} 7. exd5 {[%clk 0:02:59]}  cxd5 {[%clk 0:02:56]} 8. O-O {[%clk 0:03:00]}  c6 {[%clk 0:02:51]} 9. Re1+ {[%clk 0:03:00]}  Be7 {[%clk 0:02:51]} 10. h3 {[%clk 0:03:00]}  O-O {[%clk 0:02:51]} 11. Nd2 {[%clk 0:03:01]}  Bd6 {[%clk 0:02:47]} 12. b3 {[%clk 0:02:58]}  Re8 {[%clk 0:02:27]} 13. Bb2 {[%clk 0:02:52]}  Rxe1+ {[%clk 0:02:26]} 14. Qxe1 {[%clk 0:02:53]}  Nh5 {[%clk 0:02:27]} 15. Nf3 {[%clk 0:02:47]}  Nf4 {[%clk 0:02:26]} 16. Qc3 {[%clk 0:02:38]}  Bf8 {[%clk 0:02:14]} 17. Qxc6 {[%clk 0:02:34]}  Bxh3 {[%clk 0:01:49]} 18. gxh3 {[%clk 0:02:12]}  Rc8 {[%clk 0:01:46]} 19. Qa4 {[%clk 0:01:40]}  Bd6 {[%clk 0:01:46]} 20. Re1 {[%clk 0:01:30]}  Nxh3+ {[%clk 0:01:38]} 21. Kf1 {[%clk 0:01:30]}  Nf4 {[%clk 0:01:32]} 22. Bf5 {[%clk 0:01:27]}  Rb8 {[%clk 0:01:30]} 23. Qd7 {[%clk 0:01:26]}  Qb6 {[%clk 0:01:16]} 24. Re8+ {[%clk 0:01:24]}  Rxe8 {[%clk 0:01:16]} 25. Qxe8+ {[%clk 0:01:25]}  Bf8 {[%clk 0:01:17]} 26. Ng5 {[%clk 0:01:14]} 1-0


[Site "https://www.chess.com"]

[Event "Titled Tuesday Blitz August 10 2021"]
[White "Kezin, Roman"]
[Black "Maghsoodloo, Parham"]
[WhiteFideId "24124621"]
[BlackFideId "12539929"]
[WhiteElo "2570"]
[BlackElo "2601"]
[Result "0-1"]
[Round "04"]
[TimeControl "180+1"]
[Date "2021.08.10"]
[WhiteClock "0:00:05"]
[BlackClock "0:00:11"]

1. d4 {[%clk 0:02:59]}  Nf6 {[%clk 0:02:59]} 2. c4 {[%clk 0:02:59]}  g6 {[%clk 0:02:59]} 3. Nc3 {[%clk 0:02:58]}  d5 {[%clk 0:02:59]} 4. cxd5 {[%clk 0:02:56]}  Nxd5 {[%clk 0:02:59]} 5. Nf3 {[%clk 0:02:54]}  Bg7 {[%clk 0:02:58]} 6. h4 {[%clk 0:02:50]}  c5 {[%clk 0:02:54]} 7. e4 {[%clk 0:02:37]}  Nxc3 {[%clk 0:02:53]} 8. bxc3 {[%clk 0:02:38]}  Qa5 {[%clk 0:02:34]} 9. Bd2 {[%clk 0:02:28]}  Bg4 {[%clk 0:02:30]} 10. Be2 {[%clk 0:02:28]}  Nc6 {[%clk 0:02:23]} 11. Rb1 {[%clk 0:02:27]}  Bxf3 {[%clk 0:01:55]} 12. gxf3 {[%clk 0:02:26]}  cxd4 {[%clk 0:01:50]} 13. cxd4 {[%clk 0:02:26]}  Qxa2 {[%clk 0:01:50]} 14. d5 {[%clk 0:02:25]}  Nd4 {[%clk 0:01:48]} 15. Rxb7 {[%clk 0:02:20]}  O-O {[%clk 0:01:41]} 16. Kf1 {[%clk 0:02:01]}  Rfb8 {[%clk 0:01:38]} 17. Rxb8+ {[%clk 0:01:35]}  Rxb8 {[%clk 0:01:39]} 18. Bd3 {[%clk 0:01:36]}  Nxf3 {[%clk 0:01:22]} 19. Be3 {[%clk 0:00:46]}  Ne5 {[%clk 0:01:18]} 20. Kg2 {[%clk 0:00:46]}  a5 {[%clk 0:01:16]} 21. Bb1 {[%clk 0:00:35]}  Qa3 {[%clk 0:01:07]} 22. h5 {[%clk 0:00:24]}  Nc4 {[%clk 0:01:04]} 23. Bf4 {[%clk 0:00:23]}  Be5 {[%clk 0:01:02]} 24. Bg5 {[%clk 0:00:13]}  f6 {[%clk 0:00:50]} 25. Bh6 {[%clk 0:00:08]}  g5 {[%clk 0:00:49]} 26. Qg4 {[%clk 0:00:08]}  Qd6 {[%clk 0:00:37]} 27. Rc1 {[%clk 0:00:08]}  Nb6 {[%clk 0:00:23]} 28. Ba2 {[%clk 0:00:03]}  Kh8 {[%clk 0:00:16]} 29. Rc6 {[%clk 0:00:02]}  Qd7 {[%clk 0:00:16]} 30. Qxd7 {[%clk 0:00:02]}  Nxd7 {[%clk 0:00:16]} 31. Bc4 {[%clk 0:00:02]}  Bd6 {[%clk 0:00:15]} 32. Ra6 {[%clk 0:00:03]}  Ne5 {[%clk 0:00:15]} 33. Be2 {[%clk 0:00:03]}  Nf7 {[%clk 0:00:15]} 34. Bxg5 {[%clk 0:00:01]}  fxg5 {[%clk 0:00:15]} 35. Rxa5 {[%clk 0:00:02]}  Ne5 {[%clk 0:00:15]} 36. Ra7 {[%clk 0:00:02]}  h6 {[%clk 0:00:15]} 37. Bf1 {[%clk 0:00:02]}  Rf8 {[%clk 0:00:15]} 38. Ra2 {[%clk 0:00:02]}  Kg7 {[%clk 0:00:15]} 39. Be2 {[%clk 0:00:02]}  Rf4 {[%clk 0:00:15]} 40. f3 {[%clk 0:00:03]}  g4 {[%clk 0:00:14]} 41. fxg4 {[%clk 0:00:04]}  Rxe4 {[%clk 0:00:13]} 42. Bf3 {[%clk 0:00:04]}  Nxf3 {[%clk 0:00:11]} 43. Kxf3 {[%clk 0:00:04]}  Rf4+ {[%clk 0:00:11]} 44. Ke3 {[%clk 0:00:05]}  Rxg4 {[%clk 0:00:11]} 0-1


[Site "https://www.chess.com"]

[Event "Titled Tuesday Blitz August 10 2021"]
[White "Kollars, Dmitrij"]
[Black "Nagy, Gabor"]
[WhiteFideId "12909572"]
[BlackFideId "737119"]
[WhiteElo "2576"]
[BlackElo "2562"]
[Result "1/2-1/2"]
[Round "04"]
[TimeControl "180+1"]
[Date "2021.08.10"]
[WhiteClock "0:00:28"]
[BlackClock "0:01:07"]

1. e4 {[%clk 0:03:00]}  e5 {[%clk 0:02:57]} 2. Nf3 {[%clk 0:03:00]}  Nc6 {[%clk 0:02:58]} 3. Nc3 {[%clk 0:03:01]}  Nf6 {[%clk 0:02:57]} 4. d4 {[%clk 0:03:01]}  exd4 {[%clk 0:02:57]} 5. Nxd4 {[%clk 0:03:02]}  Bb4 {[%clk 0:02:57]} 6. Nxc6 {[%clk 0:03:01]}  bxc6 {[%clk 0:02:58]} 7. Bd3 {[%clk 0:03:01]}  d5 {[%clk 0:02:57]} 8. Bd2 {[%clk 0:03:01]}  O-O {[%clk 0:02:55]} 9. O-O {[%clk 0:03:01]}  Bxc3 {[%clk 0:02:47]} 10. Bxc3 {[%clk 0:03:02]}  Nxe4 {[%clk 0:02:47]} 11. Bxe4 {[%clk 0:03:00]}  dxe4 {[%clk 0:02:48]} 12. Qe2 {[%clk 0:03:00]}  Bf5 {[%clk 0:02:44]} 13. Qe3 {[%clk 0:02:58]}  Qd6 {[%clk 0:02:42]} 14. Rfe1 {[%clk 0:02:42]}  h6 {[%clk 0:02:39]} 15. Rad1 {[%clk 0:02:31]}  Qg6 {[%clk 0:02:38]} 16. Qf4 {[%clk 0:02:25]}  Rad8 {[%clk 0:02:08]} 17. Rxd8 {[%clk 0:02:23]}  Rxd8 {[%clk 0:02:09]} 18. Qxc7 {[%clk 0:02:23]}  Rd7 {[%clk 0:02:08]} 19. Qf4 {[%clk 0:02:13]}  Kh7 {[%clk 0:02:04]} 20. a4 {[%clk 0:01:47]}  Re7 {[%clk 0:01:48]} 21. Re3 {[%clk 0:01:44]}  Qg4 {[%clk 0:01:41]} 22. Qxg4 {[%clk 0:01:37]}  Bxg4 {[%clk 0:01:42]} 23. f3 {[%clk 0:01:27]}  Bf5 {[%clk 0:01:39]} 24. g4 {[%clk 0:01:23]}  Bg6 {[%clk 0:01:36]} 25. Kf2 {[%clk 0:01:17]}  f5 {[%clk 0:01:35]} 26. gxf5 {[%clk 0:01:18]}  Bxf5 {[%clk 0:01:36]} 27. Bd4 {[%clk 0:01:16]}  a6 {[%clk 0:01:33]} 28. Kg3 {[%clk 0:01:03]}  g5 {[%clk 0:01:32]} 29. b4 {[%clk 0:00:59]}  Kg6 {[%clk 0:01:30]} 30. h4 {[%clk 0:00:54]}  gxh4+ {[%clk 0:01:25]} 31. Kxh4 {[%clk 0:00:55]}  Rd7 {[%clk 0:01:25]} 32. c3 {[%clk 0:00:55]}  Re7 {[%clk 0:01:13]} 33. Kg3 {[%clk 0:00:52]}  Re6 {[%clk 0:01:11]} 34. fxe4 {[%clk 0:00:31]}  Rxe4 {[%clk 0:01:07]} 35. Rxe4 {[%clk 0:00:28]} 1/2-1/2


[Site "https://www.chess.com"]

[Event "Titled Tuesday Blitz August 10 2021"]
[White "Makhnev, Denis"]
[Black "Peralta, Eduardo"]
[WhiteFideId "13707647"]
[BlackFideId "3700062"]
[WhiteElo "2537"]
[BlackElo "2205"]
[Result "0-1"]
[Round "04"]
[TimeControl "180+1"]
[Date "2021.08.10"]
[WhiteClock "0:00:05"]
[BlackClock "0:00:24"]

1. d4 {[%clk 0:03:00]}  c5 {[%clk 0:02:10]} 2. d5 {[%clk 0:02:59]}  Nf6 {[%clk 0:02:10]} 3. Nc3 {[%clk 0:02:59]}  g6 {[%clk 0:02:09]} 4. e4 {[%clk 0:02:59]}  d6 {[%clk 0:02:10]} 5. Bb5+ {[%clk 0:02:57]}  Nbd7 {[%clk 0:02:07]} 6. a4 {[%clk 0:02:58]}  Bg7 {[%clk 0:02:03]} 7. Nf3 {[%clk 0:02:58]}  O-O {[%clk 0:01:59]} 8. O-O {[%clk 0:02:58]}  a6 {[%clk 0:01:48]} 9. Be2 {[%clk 0:02:58]}  b6 {[%clk 0:01:43]} 10. h3 {[%clk 0:02:44]}  Ne8 {[%clk 0:01:39]} 11. Bf4 {[%clk 0:02:43]}  Ne5 {[%clk 0:01:36]} 12. Nd2 {[%clk 0:02:39]}  f5 {[%clk 0:01:32]} 13. exf5 {[%clk 0:02:38]}  Bxf5 {[%clk 0:01:28]} 14. Bg3 {[%clk 0:02:31]}  Nc7 {[%clk 0:01:24]} 15. Re1 {[%clk 0:02:29]}  h6 {[%clk 0:01:21]} 16. Nf1 {[%clk 0:02:25]}  b5 {[%clk 0:01:14]} 17. axb5 {[%clk 0:02:25]}  axb5 {[%clk 0:01:15]} 18. Rxa8 {[%clk 0:02:25]}  Qxa8 {[%clk 0:01:16]} 19. Nxb5 {[%clk 0:02:21]}  Nxd5 {[%clk 0:01:14]} 20. Bxe5 {[%clk 0:01:01]}  dxe5 {[%clk 0:01:11]} 21. Bf3 {[%clk 0:00:50]}  e4 {[%clk 0:01:04]} 22. Bxe4 {[%clk 0:00:35]}  Bxe4 {[%clk 0:01:05]} 23. Rxe4 {[%clk 0:00:35]}  Nf4 {[%clk 0:01:05]} 24. Ng3 {[%clk 0:00:24]}  Kh8 {[%clk 0:01:05]} 25. Qg4 {[%clk 0:00:21]}  h5 {[%clk 0:00:59]} 26. Qg5 {[%clk 0:00:19]}  e5 {[%clk 0:00:59]} 27. Kh2 {[%clk 0:00:17]}  Qc6 {[%clk 0:00:53]} 28. c4 {[%clk 0:00:17]}  Qb6 {[%clk 0:00:50]} 29. Re3 {[%clk 0:00:13]}  Qc6 {[%clk 0:00:49]} 30. Ne4 {[%clk 0:00:13]}  Qe6 {[%clk 0:00:46]} 31. b3 {[%clk 0:00:12]}  Rf5 {[%clk 0:00:42]} 32. Qd8+ {[%clk 0:00:12]}  Rf8 {[%clk 0:00:40]} 33. Qd6 {[%clk 0:00:12]}  Qc8 {[%clk 0:00:36]} 34. Qxc5 {[%clk 0:00:11]}  Qa8 {[%clk 0:00:35]} 35. Nbd6 {[%clk 0:00:11]}  Qa1 {[%clk 0:00:32]} 36. Qc7 {[%clk 0:00:09]}  Qf1 {[%clk 0:00:27]} 37. Rg3 {[%clk 0:00:08]}  Ne2 {[%clk 0:00:24]} 38. Nf7+ {[%clk 0:00:07]}  Rxf7 {[%clk 0:00:24]} 39. Qc8+ {[%clk 0:00:05]}  Rf8 {[%clk 0:00:24]} 0-1


[Site "https://www.chess.com"]

[Event "Titled Tuesday Blitz August 10 2021"]
[White "Maze, Sebastien"]
[Black "Zhigalko, Sergei"]
[WhiteFideId "613762"]
[BlackFideId "13502956"]
[WhiteElo "2462"]
[BlackElo "2662"]
[Result "0-1"]
[Round "04"]
[TimeControl "180+1"]
[Date "2021.08.10"]
[WhiteClock "0:02:17"]
[BlackClock "0:02:28"]

1. e4 {[%clk 0:03:00]}  c5 {[%clk 0:02:59]} 2. Nc3 {[%clk 0:03:00]}  Nc6 {[%clk 0:02:59]} 3. Bb5 {[%clk 0:02:59]}  Nd4 {[%clk 0:02:59]} 4. Nf3 {[%clk 0:02:58]}  e6 {[%clk 0:03:00]} 5. O-O {[%clk 0:02:57]}  a6 {[%clk 0:02:57]} 6. Bd3 {[%clk 0:02:53]}  Nxf3+ {[%clk 0:02:40]} 7. Qxf3 {[%clk 0:02:52]}  Bd6 {[%clk 0:02:41]} 8. Ne2 {[%clk 0:02:40]}  Qc7 {[%clk 0:02:37]} 9. h3 {[%clk 0:02:36]}  c4 {[%clk 0:02:36]} 10. e5 {[%clk 0:02:26]}  Bxe5 {[%clk 0:02:33]} 11. Be4 {[%clk 0:02:21]}  d5 {[%clk 0:02:32]} 12. Bxd5 {[%clk 0:02:17]}  exd5 {[%clk 0:02:31]} 13. Qxd5 {[%clk 0:02:17]}  Nf6 {[%clk 0:02:30]} 14. Qf3 {[%clk 0:02:17]}  O-O {[%clk 0:02:28]} 0-1


[Site "https://www.chess.com"]

[Event "Titled Tuesday Blitz August 10 2021"]
[White "Perez Gormaz, Matias"]
[Black "Lashkin, Jegor"]
[WhiteFideId "3406342"]
[BlackFideId "13907808"]
[WhiteElo "2352"]
[BlackElo "2293"]
[Result "0-1"]
[Round "04"]
[TimeControl "180+1"]
[Date "2021.08.10"]
[WhiteClock "0:00:01"]
[BlackClock "0:00:08"]

1. e4 {[%clk 0:03:00]}  c5 {[%clk 0:02:59]} 2. Nf3 {[%clk 0:03:01]}  d6 {[%clk 0:02:59]} 3. d4 {[%clk 0:03:01]}  cxd4 {[%clk 0:02:59]} 4. Nxd4 {[%clk 0:03:02]}  Nf6 {[%clk 0:02:59]} 5. Nc3 {[%clk 0:03:03]}  a6 {[%clk 0:02:59]} 6. Bg5 {[%clk 0:03:03]}  e6 {[%clk 0:02:58]} 7. f4 {[%clk 0:03:03]}  Qb6 {[%clk 0:02:58]} 8. Nb3 {[%clk 0:02:50]}  Nbd7 {[%clk 0:02:56]} 9. Qf3 {[%clk 0:02:40]}  Qc7 {[%clk 0:02:56]} 10. O-O-O {[%clk 0:02:35]}  b5 {[%clk 0:02:56]} 11. Bd3 {[%clk 0:02:27]}  Bb7 {[%clk 0:02:55]} 12. a3 {[%clk 0:02:24]}  Be7 {[%clk 0:02:53]} 13. Rhe1 {[%clk 0:02:20]}  h6 {[%clk 0:02:35]} 14. Bh4 {[%clk 0:02:16]}  g5 {[%clk 0:02:35]} 15. fxg5 {[%clk 0:02:17]}  Ne5 {[%clk 0:02:35]} 16. Qf1 {[%clk 0:01:58]}  Nfd7 {[%clk 0:02:27]} 17. Kb1 {[%clk 0:01:47]}  hxg5 {[%clk 0:02:27]} 18. Bg3 {[%clk 0:01:47]}  Rc8 {[%clk 0:02:20]} 19. Nd4 {[%clk 0:01:37]}  Qa5 {[%clk 0:01:47]} 20. Nb3 {[%clk 0:01:36]}  Qc7 {[%clk 0:01:47]} 21. Nd4 {[%clk 0:01:35]}  Ba8 {[%clk 0:01:40]} 22. Nf3 {[%clk 0:01:22]}  Rb8 {[%clk 0:01:14]} 23. Na2 {[%clk 0:01:17]}  Qb6 {[%clk 0:00:47]} 24. Bf2 {[%clk 0:01:12]}  Qb7 {[%clk 0:00:47]} 25. Bd4 {[%clk 0:01:06]}  a5 {[%clk 0:00:42]} 26. c3 {[%clk 0:01:03]}  g4 {[%clk 0:00:38]} 27. Nxe5 {[%clk 0:00:59]}  dxe5 {[%clk 0:00:39]} 28. Bg1 {[%clk 0:00:54]}  b4 {[%clk 0:00:39]} 29. cxb4 {[%clk 0:00:53]}  axb4 {[%clk 0:00:39]} 30. Nxb4 {[%clk 0:00:53]}  Bxb4 {[%clk 0:00:39]} 31. axb4 {[%clk 0:00:54]}  Qxb4 {[%clk 0:00:40]} 32. Qe2 {[%clk 0:00:48]}  Bc6 {[%clk 0:00:32]} 33. Rc1 {[%clk 0:00:44]}  Ba4 {[%clk 0:00:28]} 34. Rc4 {[%clk 0:00:44]}  Qa5 {[%clk 0:00:22]} 35. Bc2 {[%clk 0:00:29]}  Bb5 {[%clk 0:00:19]} 36. Rd1 {[%clk 0:00:26]}  Bxc4 {[%clk 0:00:19]} 37. Qxc4 {[%clk 0:00:27]}  Qb4 {[%clk 0:00:15]} 38. Qa2 {[%clk 0:00:12]}  Nc5 {[%clk 0:00:11]} 39. g3 {[%clk 0:00:03]}  O-O {[%clk 0:00:09]} 40. Bxc5 {[%clk 0:00:01]}  Qxc5 {[%clk 0:00:10]} 41. Qa4 {[%clk 0:00:01]}  Qc3 {[%clk 0:00:08]} 0-1


[Site "https://www.chess.com"]

[Event "Titled Tuesday Blitz August 10 2021"]
[White "Sarana, Alexey"]
[Black "Moroni, Luca Jr"]
[WhiteFideId "24133795"]
[BlackFideId "865834"]
[WhiteElo "2646"]
[BlackElo "2491"]
[Result "0-1"]
[Round "04"]
[TimeControl "180+1"]
[Date "2021.08.10"]
[WhiteClock "0:00:09"]
[BlackClock "0:00:08"]

1. e4 {[%clk 0:02:48]}  e5 {[%clk 0:02:58]} 2. Nf3 {[%clk 0:02:49]}  Nc6 {[%clk 0:02:59]} 3. Bb5 {[%clk 0:02:45]}  a6 {[%clk 0:02:59]} 4. Ba4 {[%clk 0:02:45]}  Nf6 {[%clk 0:02:58]} 5. O-O {[%clk 0:02:46]}  Nxe4 {[%clk 0:02:58]} 6. d4 {[%clk 0:02:45]}  Be7 {[%clk 0:02:58]} 7. Re1 {[%clk 0:02:38]}  b5 {[%clk 0:02:56]} 8. Rxe4 {[%clk 0:02:29]}  d5 {[%clk 0:02:56]} 9. Nxe5 {[%clk 0:02:29]}  Nxe5 {[%clk 0:02:56]} 10. Rxe5 {[%clk 0:02:30]}  bxa4 {[%clk 0:02:56]} 11. b3 {[%clk 0:02:30]}  O-O {[%clk 0:02:53]} 12. Nc3 {[%clk 0:02:30]}  Bd6 {[%clk 0:02:25]} 13. Rxd5 {[%clk 0:02:12]}  Bb7 {[%clk 0:02:16]} 14. Rh5 {[%clk 0:02:10]}  g6 {[%clk 0:02:11]} 15. Rh3 {[%clk 0:02:10]}  a3 {[%clk 0:02:00]} 16. d5 {[%clk 0:01:37]}  Re8 {[%clk 0:01:51]} 17. Be3 {[%clk 0:01:36]}  Bc8 {[%clk 0:01:40]} 18. Rh6 {[%clk 0:01:35]}  Be5 {[%clk 0:01:34]} 19. Bd4 {[%clk 0:01:24]}  Qg5 {[%clk 0:01:12]} 20. Bxe5 {[%clk 0:01:14]}  Qxe5 {[%clk 0:01:10]} 21. Qd2 {[%clk 0:01:14]}  Qf6 {[%clk 0:00:53]} 22. h4 {[%clk 0:01:01]}  Bg4 {[%clk 0:00:45]} 23. f3 {[%clk 0:00:48]}  Bf5 {[%clk 0:00:44]} 24. h5 {[%clk 0:00:46]}  Qb6+ {[%clk 0:00:38]} 25. Kh1 {[%clk 0:00:43]}  Qe3 {[%clk 0:00:36]} 26. Qxe3 {[%clk 0:00:16]}  Rxe3 {[%clk 0:00:36]} 27. hxg6 {[%clk 0:00:16]}  Rxc3 {[%clk 0:00:35]} 28. gxf7+ {[%clk 0:00:16]}  Kxf7 {[%clk 0:00:33]} 29. Rc1 {[%clk 0:00:17]}  Bg6 {[%clk 0:00:26]} 30. Rh4 {[%clk 0:00:17]}  Rd8 {[%clk 0:00:21]} 31. Ra4 {[%clk 0:00:16]}  Rxd5 {[%clk 0:00:21]} 32. Rxa6 {[%clk 0:00:16]}  Rd2 {[%clk 0:00:21]} 33. Rxa3 {[%clk 0:00:16]}  Rcxc2 {[%clk 0:00:17]} 34. Rxc2 {[%clk 0:00:16]}  Rxc2 {[%clk 0:00:18]} 35. Ra5 {[%clk 0:00:15]}  Kf6 {[%clk 0:00:17]} 36. Kg1 {[%clk 0:00:16]}  Bf5 {[%clk 0:00:15]} 37. Kh2 {[%clk 0:00:12]}  h5 {[%clk 0:00:15]} 38. Kg3 {[%clk 0:00:12]}  Kg5 {[%clk 0:00:15]} 39. Kh2 {[%clk 0:00:12]}  h4 {[%clk 0:00:13]} 40. Ra8 {[%clk 0:00:07]}  h3 {[%clk 0:00:11]} 41. Rg8+ {[%clk 0:00:08]}  Kf4 {[%clk 0:00:11]} 42. a4 {[%clk 0:00:09]}  Rb2 {[%clk 0:00:08]} 43. a5 {[%clk 0:00:08]}  hxg2 {[%clk 0:00:07]} 44. a6 {[%clk 0:00:08]}  Ra2 {[%clk 0:00:05]} 45. Rxg2 {[%clk 0:00:06]}  Rxa6 {[%clk 0:00:05]} 46. Rg7 {[%clk 0:00:06]}  c6 {[%clk 0:00:05]} 47. Kg2 {[%clk 0:00:04]}  Ra2+ {[%clk 0:00:05]} 48. Kf1 {[%clk 0:00:05]}  Kxf3 {[%clk 0:00:04]} 49. Ke1 {[%clk 0:00:06]}  Rb2 {[%clk 0:00:04]} 50. Rf7 {[%clk 0:00:03]}  Ke4 {[%clk 0:00:04]} 51. Rf6 {[%clk 0:00:04]}  Rc2 {[%clk 0:00:03]} 52. Kd1 {[%clk 0:00:04]}  Rc5 {[%clk 0:00:03]} 53. Kd2 {[%clk 0:00:02]}  Ke5 {[%clk 0:00:04]} 54. Rh6 {[%clk 0:00:03]}  Be6 {[%clk 0:00:04]} 55. Rh5+ {[%clk 0:00:03]}  Kd6 {[%clk 0:00:04]} 56. Rh6 {[%clk 0:00:04]}  Rb5 {[%clk 0:00:04]} 57. Kc2 {[%clk 0:00:04]}  Rxb3 {[%clk 0:00:04]} 58. Rxe6+ {[%clk 0:00:04]}  Kxe6 {[%clk 0:00:05]} 59. Kxb3 {[%clk 0:00:05]}  Kd5 {[%clk 0:00:05]} 60. Kb2 {[%clk 0:00:05]}  Kc4 {[%clk 0:00:05]} 61. Kc1 {[%clk 0:00:05]}  Kc3 {[%clk 0:00:05]} 62. Kd1 {[%clk 0:00:06]}  c5 {[%clk 0:00:05]} 63. Kc1 {[%clk 0:00:06]}  c4 {[%clk 0:00:06]} 64. Kb1 {[%clk 0:00:06]}  Kd2 {[%clk 0:00:06]} 65. Kb2 {[%clk 0:00:07]}  c3+ {[%clk 0:00:07]} 66. Kb1 {[%clk 0:00:07]}  c2+ {[%clk 0:00:08]} 67. Ka2 {[%clk 0:00:08]}  c1=Q {[%clk 0:00:08]} 68. Kb3 {[%clk 0:00:09]}  Qb1+ {[%clk 0:00:08]} 0-1


[Site "https://www.chess.com"]